Cogmind - Beta 10.2 @@@ ROGUE MODE // 2021.08.04 @ 22:46:03 Player: Azoxey Result: Destroyed by G-47 Trooper with Particle Gun Performance ------------- Evolutions (2) 1000 Regions Visited (6) 1200 Robots Destroyed (53) 265 Value Destroyed (1211) 1211 Prototype IDs (24) 480 Alien Tech Used (0) 0 Bonus (335) 335 TOTAL SCORE: 4491 Bonus ------- Follower Combat Kills 35 Aligned with FarCom 300 Cogmind --------- Core Integrity 0/550 Matter 300/300 Energy 95/100 System Corruption 0% Temperature Cool (9) Movement Core (50) Location -8/Materials Parts ------- > --- POWER (1) -------- (None) > --- PROPULSION (4) --- (None) > --- UTILITY (4) ------ Signal Interpreter Advanced Signal Interpreter > --- WEAPON (2) ------- Longsword +1 > --- INVENTORY (4) ---- Small Storage Unit Humpback High-capacity Matter Pod (200) Peak State ------------ > --- POWER ------------ Light Nuclear Core > --- PROPULSION ------- Aluminum Leg Aluminum Leg Carbon-fiber Leg Airjet > --- UTILITY ---------- Small Storage Unit Structural Scanner Signal Interpreter Advanced Signal Interpreter > --- WEAPON ----------- Enhanced Autogun Flak Gun > --- INVENTORY -------- Humpback High-capacity Battery High-capacity Matter Pod Rocket Launcher Longsword +1 [Rating: 26] Favorites ----------- Power Light Ion Engine Engine Light Ion Engine Power Core Light Nuclear Core Propulsion Airjet Treads Light Treads Leg Aluminum Leg Wheel Compact Wheel Hover Unit Airjet Utility Small Storage Unit Device Structural Scanner Storage Small Storage Unit Processor Signal Interpreter Weapon Light Assault Rifle Energy Gun Medium Laser Ballistic Gun Light Assault Rifle Launcher Rocket Launcher Slashing Weapon Longsword +1 Special Melee Weapon Datajack Build | -11 -10 -9 -9 -9 -8 -8 ------- Run | Scr Mat Mat Min Exi Min Mat Slots Evolved 4 | . . 2 . . . 2 Power . | . . . . . . . Propulsion 2 | . . 1 . . . 1 Utility 2 | . . 1 . . . 1 Weapon . | . . . . . . . Parts Attached 49 | 6 6 9 8 . 2 18 Power 8 | 1 1 1 2 . 1 2 Engine 6 | 1 1 1 2 . . 1 Core 2 | . . . . . 1 1 Reactor . | . . . . . . . Propulsion 13 | 2 1 4 1 . . 5 Treads 2 | . . . . . . 2 Leg 6 | 2 1 . . . . 3 Wheel 1 | . . . 1 . . . Hover 4 | . . 4 . . . . Flight . | . . . . . . . Utility 7 | 1 1 1 1 . . 3 Device 2 | . . 1 . . . 1 Storage 2 | 1 . . . . . 1 Processor 3 | . 1 . 1 . . 1 Hackware . | . . . . . . . Protection . | . . . . . . . Artifact . | . . . . . . . Weapon 21 | 2 3 3 4 . 1 8 Energy Gun 6 | 2 2 2 . . . . Energy Cannon . | . . . . . . . Ballistic Gun 5 | . 1 . 2 . . 2 Ballistic Cannon . | . . . . . . . Launcher 5 | . . 1 1 . 1 2 Special Weapon . | . . . . . . . Impact Weapon . | . . . . . . . Slashing Weapon 2 | . . . . . . 2 Piercing Weapon . | . . . . . . . Special Melee Weapon 3 | . . . 1 . . 2 Unidentified Prototypes 1 | . . . . . . 1 Parts Lost 20 | . 1 3 1 . 1 14 Power 4 | . . . 1 . . 3 Propulsion 10 | . . 2 . . 1 7 Utility 1 | . . . . . . 1 Weapon 5 | . 1 1 . . . 3 Highest Loss Streak 6 | . 1 3 1 . 1 6 Average Slot Usage (%) 92 | . 99 95 93 100 90 79 Engine 10 | . 14 11 10 11 11 2 Treads 1 | . . . . . . 4 Leg 11 | . 28 . . . . 10 Wheel 4 | . . . 7 11 11 3 Hover 10 | . . 29 22 22 12 4 Device 6 | . . 11 11 11 11 8 Storage 11 | . 14 11 11 11 11 8 Processor 13 | . 13 11 11 11 11 17 Energy Gun 7 | . 19 18 . . . . Ballistic Gun 8 | . 7 . 8 11 11 7 Launcher 2 | . . 1 6 . 9 1 Special Melee Weapon 3 | . . . 4 11 1 4 Naked Turns . | . . . . . . . Heaviest Build 20 | 13 13 18 16 10 15 20 Greatest Support 35 | 20 20 27 18 18 18 35 Greatest Overweight (x) 3 | 1 . 1 . . 1 3 Average Overweight (x) . | . . . . . . . Largest Inventory Capacity 6 | 6 6 6 6 6 6 6 Average Capacity 5 | 5 6 6 6 6 6 5 Most Carried 6 | 4 6 6 6 6 6 6 Average Carried 5 | 2 5 5 5 5 6 5 Final Capacity 6 | 6 6 6 6 6 6 4 Final Carried 6 | 4 6 5 6 6 6 4 Class Distribution -------------------- 92% | Mutant 7% | Scavenger-Mutant Dominant Class ---------------- Mutant | -10/Materials Mutant | -9/Materials Mutant | -9/Mines Mutant | -9/Exiles Mutant | -8/Mines Mutant | -8/Materials Resources | -11 -10 -9 -9 -9 -8 -8 ----------- Run | Scr Mat Mat Min Exi Min Mat Matter Collected 1212 | 260 302 70 125 . 70 385 Remotely . | . . . . . . . Salvage Created 1647 | 77 437 170 112 . 109 742 Parts 106 | 3 19 17 11 . 8 48 Haulers Intercepted 3 | . 2 . . . . 1 Recyclers Shooed 4 | . 1 . 2 . . 1 Parts Field Recycled . | . . . . . . . Retrieved Matter . | . . . . . . . Parts Self-Destructed . | . . . . . . . Prevented . | . . . . . . . Kills | -11 -10 -9 -9 -9 -8 -8 ------- Run | Scr Mat Mat Min Exi Min Mat Combat Hostiles Destroyed 39 | . 7 4 4 . 9 15 Melee 6 | . . . . . . 6 Guns 13 | . 5 2 . . 1 5 AOE 20 | . 2 2 4 . 8 4 Classes Destroyed 10 | 1 3 2 1 . 1 2 Worker 3 | . . 1 1 . . 1 Hauler 3 | . 2 . . . . 1 Recycler 5 | 1 . . 1 . . 3 Operator 1 | . . . . . . 1 Watcher 2 | . 1 1 . . . . Swarmer 18 | . . . 4 . 7 7 Grunt 13 | . 7 2 . . 1 3 Brawler 1 | . . . . . 1 . Sentry 6 | . . 2 . . . 4 Hunter 1 | . . . . . . 1 Best Kill Streak 9 | 1 3 5 4 . 4 9 Combat Bots Only 6 | . 3 2 4 . 4 6 Max Kills in Single Turn 3 | 1 1 2 2 . 3 2 Gunslinging . | . . . . . . . Exploded 3 | . 1 1 2 . 3 2 Melee 1 | . . . . . . 1 Uniques/NPCs Destroyed . | . . . . . . . Combat | -11 -10 -9 -9 -9 -8 -8 -------- Run | Scr Mat Mat Min Exi Min Mat Damage Taken 2268 | . 313 436 35 . 77 1407 Core 761 | . 101 108 . . . 552 Absorbed by Shields . | . . . . . . . Core Remaining (%) 77 | 100 59 . . . 73 . Volleys Fired 109 | 4 31 16 14 . 8 36 Largest 2 | 2 2 2 1 . 2 2 Hottest 100 | 90 90 100 33 . 53 61 Shots Fired 166 | 8 59 31 14 . 13 41 Gun 150 | 8 59 28 11 . 8 36 Cannon . | . . . . . . . Launcher 16 | . . 3 3 . 5 5 Special . | . . . . . . . Kinetic 69 | . 14 . 11 . 8 36 Thermal 32 | 4 28 . . . . . Explosive 16 | . . 3 3 . 5 5 Electromagnetic 49 | 4 17 28 . . . . Robot Hit Streak 7 | 2 7 4 6 . 6 7 Robot Miss Streak 7 | 1 5 7 3 . 1 5 Penetration Max . | . . . . . . . Secondary Targets . | . . . . . . . Shots Hit Robots 132 | 4 38 10 16 . 9 55 Core Hits 101 | 2 21 15 9 . 11 43 Critical Hits . | . . . . . . . Critical Kills . | . . . . . . . Critical Parts Destroyed . | . . . . . . . Melee Attacks 31 | . . . 8 . . 23 Impact . | . . . . . . . Slashing 23 | . . . . . . 23 Piercing . | . . . . . . . Sneak Attacks 9 | . . . 5 . . 4 Combat Hostiles . | . . . . . . . Follow-up Attacks . | . . . . . . . Damage Inflicted 4333 | 53 542 599 371 . 644 2124 Guns 1242 | 53 443 200 79 . 34 433 Cannons . | . . . . . . . Explosions 1827 | . 99 399 292 . 610 427 Melee 1264 | . . . . . . 1264 Ramming . | . . . . . . . Kinetic 687 | . 141 . 79 . 34 433 Thermal 694 | 26 257 118 . . 42 251 Explosive 1317 | . . 281 292 . 568 176 Electromagnetic 371 | 27 144 200 . . . . Impact . | . . . . . . . Slashing 1264 | . . . . . . 1264 Piercing . | . . . . . . . Highest Corruption 1 | . 1 . . . . . Average Corruption 1 | . 1 . . . . . Corruption Purged . | . . . . . . . Effects 1 | . 1 . . . . . Targeting Errors 1 | . 1 . . . . . Overload Shots . | . . . . . . . Overflow Damage 204 | . 5 4 10 . 82 103 Projectiles . | . . . . . . . Explosions 101 | . 5 4 10 . 82 . Melee 103 | . . . . . . 103 Knockbacks . | . . . . . . . Impact . | . . . . . . . Kinetic . | . . . . . . . Secondary . | . . . . . . . Self-Inflicted Damage 103 | . 32 36 . . . 35 Shots 3 | . 1 1 . . . 1 Rammed . | . . . . . . . Targets Rammed . | . . . . . . . Kicked . | . . . . . . . Crushed . | . . . . . . . Highest Temperature 392 | 120 174 392 1 . 16 230 Average Temperature 113 | 62 56 200 1 . 7 108 Received Heat Transfer 708 | . 150 189 . . . 369 Effects 1 | . . 1 . . . . Shutdowns 1 | . . 1 . . . . Siege Activations . | . . . . . . . Robots Corrupted . | . . . . . . . Combat Hostiles . | . . . . . . . Parts Fried 1 | . . 1 . . . . Impact Corruptions . | . . . . . . . Robots Melted . | . . . . . . . Combat Hostiles . | . . . . . . . Parts Melted 1 | . . . . . 1 . Heat Transferred 1072 | 74 548 200 . . 100 150 Parts Sabotaged . | . . . . . . . Parts Stolen . | . . . . . . . Parts Stripped . | . . . . . . . Power Chain Reactions 3 | . 2 1 . . . . Missiles Intercepted . | . . . . . . . Alert | -11 -10 -9 -9 -9 -8 -8 ------- Run | Scr Mat Mat Min Exi Min Mat Peak Influence 407 | 5 139 212 186 . 254 407 Initial 98 | . 3 . 82 . . 98 Average 114 | 1 60 91 164 . 157 157 Maximum Alert Level 2 | . . 1 . . 1 2 Low Security (%) 93 | 100 100 93 100 . 94 80 Level 1 5 | . . 6 . . 5 18 Level 2 . | . . . . . . 1 Level 3 . | . . . . . . . Level 4 . | . . . . . . . Level 5 . | . . . . . . . High Security . | . . . . . . . Max Security . | . . . . . . . Squads Dispatched 9 | . 1 2 . . . 6 Investigation 2 | . 1 . . . . 1 Extermination . | . . . . . . . Reinforcement 6 | . . 2 . . . 4 Assault . | . . . . . . . Garrison 1 | . . . . . . 1 Intercept . | . . . . . . . Construction Impeded 1 | . . 1 . . . . Haulers Reinforced . | . . . . . . . Stealth | -11 -10 -9 -9 -9 -8 -8 --------- Run | Scr Mat Mat Min Exi Min Mat Distress Signals 1 | . . 1 . . . . Communications Jammed . | . . . . . . . Distress Signals . | . . . . . . . Times Spotted 73 | . 15 13 3 . 9 33 Peak Tracking Total 17 | . 3 6 3 . 4 17 Tactical Retreats 5 | . 2 1 . . . 2 Traps | -11 -10 -9 -9 -9 -8 -8 ------- Run | Scr Mat Mat Min Exi Min Mat Traps Triggered 3 | . 2 . . . . 1 Indirectly . | . . . . . . . Trap Hack Attempts . | . . . . . . . Triggered . | . . . . . . . Disarmed . | . . . . . . . Reprogrammed . | . . . . . . . Reused . | . . . . . . . Traps Extracted . | . . . . . . . Installed . | . . . . . . . Triggered . | . . . . . . . Machines | -11 -10 -9 -9 -9 -8 -8 ---------- Run | Scr Mat Mat Min Exi Min Mat Machines Disabled 5 | . . 1 . . 2 2 Max in Single Turn 1 | . . 1 . . 1 1 Garrison Access 1 | . . . . . . 1 Machines Sabotaged . | . . . . . . . Garrisons Compromised . | . . . . . . . Overloaded Fab Kills . | . . . . . . . Fab Network Shutdowns . | . . . . . . . Hacking | -11 -10 -9 -9 -9 -8 -8 --------- Run | Scr Mat Mat Min Exi Min Mat Machines Accessed 19 | . 7 3 . 5 . 4 Terminals 8 | . 4 3 . . . 1 Fabricators . | . . . . . . . Repair Stations 2 | . 1 . . . . 1 Recycling Units 3 | . 2 . . . . 1 Scanalyzers . | . . . . . . . Garrison Access 1 | . . . . . . 1 Total Hacks 84 | . 13 11 . 50 . 10 Successful 72 | . 8 8 . 50 . 6 Failed 12 | . 5 3 . . . 4 Catastrophic 1 | . 1 . . . . . Database Lockouts . | . . . . . . . Manual 26 | . 12 9 . 1 . 4 Terminals 22 | . 9 11 . . . 2 Fabricators . | . . . . . . . Repair Stations 5 | . 1 . . . . 4 Recycling Units 5 | . 3 . . . . 2 Scanalyzers . | . . . . . . . Garrison Access 2 | . . . . . . 2 Terminal Hacks 54 | . 1 3 . 50 . . Record 49 | . . . . 49 . . Terminal Index 2 | . 1 1 . . . . Dispatch Records 1 | . . 1 . . . . Zone Layout 1 | . . 1 . . . . EX-Prototype ID Bank 1 | . . . . 1 . . Fabricator Hacks . | . . . . . . . Repair Station Hacks 2 | . . . . . . 2 Scan Component 1 | . . . . . . 1 Repair 1 | . . . . . . 1 Recycling Unit Hacks . | . . . . . . . Scanalyzer . | . . . . . . . Garrison Access Hacks 1 | . . . . . . 1 Seal Access 1 | . . . . . . 1 Unauthorized Hacks 15 | . 7 5 . . . 3 Terminals 10 | . 4 5 . . . 1 Assimilate 2 | . 1 1 . . . . Botnet 6 | . 2 3 . . . 1 Operators 2 | . 1 1 . . . . Fabricators . | . . . . . . . Repair Stations 1 | . . . . . . 1 Mechanics 1 | . . . . . . 1 Recycling Units 4 | . 3 . . . . 1 Reject 3 | . 2 . . . . 1 Recyclers 1 | . 1 . . . . . Scanalyzers . | . . . . . . . Garrison Access . | . . . . . . . Data Cores Recovered . | . . . . . . . Used . | . . . . . . . Hacking Detections 12 | . 7 2 . . . 3 Full Trace Events 1 | . 1 . . . . . Feedback Events . | . . . . . . . Feedback Blocked . | . . . . . . . Robot Schematics Acquired . | . . . . . . . Robots Built . | . . . . . . . Matter . | . . . . . . . Time . | . . . . . . . Total Robot Build Rating . | . . . . . . . Part Schematics Acquired . | . . . . . . . Parts Built . | . . . . . . . Matter . | . . . . . . . Time . | . . . . . . . Total Part Build Rating . | . . . . . . . Parts Repaired 1 | . . . . . . 1 Time 26 | . . . . . . 26 Parts Recycled . | . . . . . . . Recycled Matter . | . . . . . . . Retrieved Matter . | . . . . . . . Retrieved Components . | . . . . . . . Parts Scanalyzed . | . . . . . . . Part Schematics Acquired . | . . . . . . . Parts Damaged . | . . . . . . . Bothacking | -11 -10 -9 -9 -9 -8 -8 ------------ Run | Scr Mat Mat Min Exi Min Mat Used RIF Installer . | . . . . . . . Robots Hacked 4 | . . . 4 . . . Non-combat 4 | . . . 4 . . . Combat . | . . . . . . . Robot Hacks Applied 5 | . . . 5 . . . parse_system 1 | . . . 1 . . . no_distress 4 | . . . 4 . . . Relay Couplers Released . | . . . . . . . Robots Rewired . | . . . . . . . Allies Hacked . | . . . . . . . Hacks Repelled . | . . . . . . . Allies | -11 -10 -9 -9 -9 -8 -8 -------- Run | Scr Mat Mat Min Exi Min Mat Total Allies 5 | . 1 1 3 . . . Largest Group 3 | . 1 2 3 3 3 . Highest-Rated Group 40 | . 10 20 40 40 40 . Highest-Rated Ally 16 | . 10 10 16 16 16 . Total Orders 7 | . . 4 3 . . . STAY 2 | . . 2 . . . . FOLLOW 2 | . . 2 . . . . GUARD 3 | . . . 3 . . . Ally Attacks 6 | . . . . . 6 . Total Damage 78 | . . . . . 78 . Kills 1 | . . . . . 1 . Allies Corrupted . | . . . . . . . Allies Melted . | . . . . . . . Intel | -11 -10 -9 -9 -9 -8 -8 ------- Run | Scr Mat Mat Min Exi Min Mat Robot Analysis Total . | . . . . . . . Derelict Logs Recovered 1 | . . . 1 . . . Drone Launches . | . . . . . . . Drone Recoveries . | . . . . . . . Exploration | -11 -10 -9 -9 -9 -8 -8 ------------- Run | Scr Mat Mat Min Exi Min Mat Turns Passed 3046 | 69 950 178 369 411 398 671 Spaces Moved 2597 | 36 640 140 449 618 336 378 Core 43 | 1 . . . . . 42 Treads . | . . . . . . . Legs 879 | 35 640 4 . . . 200 Wheels 19 | . . . . . . 19 Hover 1656 | . . 136 449 618 336 117 Flight . | . . . . . . . Fastest Speed 50 | 50 120 52 56 61 61 50 Average Speed 90 | 123 120 57 59 61 109 116 Slowest Speed 200 | 150 120 130 61 61 125 200 Overloaded Moves . | . . . . . . . Propulsion Burnouts . | . . . . . . . Robots Hopped . | . . . . . . . Cave-ins Triggered . | . . . . . . . Exploration Rate (%) 53 | 4 71 15 84 74 93 30 Regions Visited 6 Branch Regions 3 Pre-discovered Areas 1 | . . . . 1 . . Known Exits Taken 5 | . 1 1 1 1 1 . Unknown Exits Taken 1 | 1 . . . . . . Scrap Searched 4 | . . . 2 . 2 . Spaces Dug . | . . . . . . . Terrain Destroyed 194 | . 12 27 27 . 64 64 Melee . | . . . . . . . Projectile . | . . . . . . . AOE 194 | . 12 27 27 . 64 64 Terrain Rammed . | . . . . . . . Walls Destroyed . | . . . . . . . Machines Disabled . | . . . . . . . Actions | -11 -10 -9 -9 -9 -8 -8 --------- Run | Scr Mat Mat Min Exi Min Mat Total 3107 | 49 773 206 533 653 354 539 Wait 270 | . 75 33 43 31 8 80 Move 2591 | 35 639 139 448 617 335 378 Hop . | . . . . . . . Pick Up 23 | 4 11 1 5 2 . . Fast Attach 28 | 6 1 5 4 . 1 11 Attach 7 | . 2 2 1 . . 2 Detach 3 | . . 2 1 . . . Swap 14 | . 3 2 3 . 1 5 Drop 31 | . 11 6 6 3 1 4 Fire 109 | 4 31 16 14 . 8 36 Melee 31 | . . . 8 . . 23 Ram . | . . . . . . . Kick . | . . . . . . . Crush . | . . . . . . . Escape Stasis . | . . . . . . . Rewire . | . . . . . . . Trap . | . . . . . . . Miscellaneous . | . . . . . . . Route ------- -11/Scrapyard -10/Materials (discovered 2 exits: *Mat / *Min) -9/Materials -9/Mines (discovered 2 exits: *Mat / *Exi) -9/Exiles (discovered 2 exits: *Min x2) -8/Mines -8/Materials (discovered 1 exit: Fac) History --------- Turn | Location | Event 2 | -11/Scrapyard | Met Revision 17 29 | -11/Scrapyard | Discovered new exit (range 15) 70 | -11/Scrapyard | Entered Materials 307 | -10/Materials | Build established: Mutant 502 | -10/Materials | Discovered new exit (range 16) 691 | -10/Materials | Identified exit to Mines 927 | -10/Materials | Discovered new exit (range 15) 943 | -10/Materials | Identified exit to Materials 1020 | -10/Materials | Entered another Materials area 1020 | -9/Materials | Accompanied by 1 ally 1020 | -9/Materials | Evolved 2 slots: Propulsion x1, Utility x1 1184 | -9/Materials | Discovered new exit (range 14) 1196 | -9/Materials | Identified exit to Mines 1198 | -9/Materials | Entered Mines 1200 | -9/Mines | Assisted by bots powering up and referring to "LRC-V3" 1216 | -9/Mines | Lost 3 parts (2n1w) 1245 | -9/Mines | Found a hidden stash of uninstalled traps 1259 | -9/Mines | Discovered new exit (range 9) 1468 | -9/Mines | Learned 4 Materials zone layouts 1544 | -9/Mines | Deemed a non-threat by the Exiles lab entrance 1545 | -9/Mines | Discovered new exit (range 5) 1546 | -9/Mines | Identified exit to Exiles 1567 | -9/Mines | Entered Exiles 1567 | -9/Exiles | Accompanied by 3 allies 1576 | -9/Exiles | Discovered new exit (range 15) 1584 | -9/Exiles | Identified exit to Mines 1597 | -9/Exiles | Met 8R-AWN 1620 | -9/Exiles | Met EX-HEX 1665 | -9/Exiles | Met EX-DEC 1696 | -9/Exiles | Learned location of Zion (-6) 1730 | -9/Exiles | Discovered exit to Mines (range 14) 1770 | -9/Exiles | Met EX-BIN 1846 | -9/Exiles | Aligned with FarCom system 1846 | -9/Exiles | Given EX-Vault access code 1862 | -9/Exiles | Opened EX-Vault 1867 | -9/Exiles | Found Longsword +1 1881 | -9/Exiles | Warned to stay clear of 0b10 Research branches 1978 | -9/Exiles | Left Exiles lab with Longsword +1 1978 | -9/Exiles | Entered Mines 1978 | -8/Mines | Accompanied by 3 allies 2348 | -8/Mines | Discovered new exit (range 13) 2371 | -8/Mines | Identified exit to Materials 2376 | -8/Mines | Entered Materials 2376 | -8/Materials | Evolved 2 slots: Propulsion x1, Utility x1 2377 | -8/Materials | Identified exit to Factory 2455 | -8/Materials | Repaired Structural Scanner 2746 | -8/Materials | Lost 4 parts (1p2n1w) 2774 | -8/Materials | Garrison activated, responded to threat 2979 | -8/Materials | Core integrity fell below 50% 2995 | -8/Materials | Lost 6 parts (1p4n1w) 3024 | -8/Materials | Core integrity fell below 20% 3047 | -8/Materials | Destroyed by G-47 Trooper with Particle Gun Last Messages --------------- 03031_ R-06 Scavenger inserts Heat Sink into recycling unit. 03032_ Recycling unit begins recycling process. 03032_ Acquired 13 matter. 03034_ R-06 Scavenger inserts Imp. Ion Engine into recycling unit. 03035_ R-06 Scavenger collects Lgt. Assault Rifle. 03036_ Sneak attack on R-06 Scavenger. 03036_ R-06 Scavenger destroyed. 03038_ R-06 Scavenger collects Hcp. Battery. 03038_ Connecting with Recycling Unit... >>Trojan(Reject) Trojan loaded successfully. Testing... Ejection routine running. 03043_ Slug penetrates Recycling Unit. 03045_ R-06 Scavenger inserts Lgt. Treads into recycling unit. 03045_ Lgt. Treads discarded by recycling unit. Map ----- +----------------------------------------------------+ | ????????????????????????????????? | | ????????????????????????????????? | | ????????????????????????????????? | | ????????????????????????????????? | | ????????????????????????????????? | | ????????????????????????????????? | | ????????????????????????????????? | | ????????????????????????????????? | | ????????????????????????????????? | | ????????????????????????????????? | | ????????????????????????????????? | | ????????????????????????????????? | | ????????????????????????????????? | | ????????????????????????????????? | | ????????????????????????????????? | | ????????????????????????????????? | | ????????????????????????????????? | | ????????????????????????????????? | | ????????????????????????????????? | | ????????????????????????????????? | | # #??????????????????????????? | | # #????????????????????###???? | | + #??????????????????### ####? | | # #???????????########! ! | #? | | # #???????????# ! #*%== #? | | # #???????????# ! #@"r" !#? | | # #???????????# #g"Y"h #? | | # #???????????#!!! # """ !#? | | # #????????????!!! # g%[! #? | | # #?????????????? ###r####? | | # #?????????????###+## Y =*#?? | | ## ###############!= = #?? | | ?# # g!/%=![ #?? | | ?# # !###### ! #?? | | ## # #????### ## #?? | | # # #??????#/#### ###?? | | # / #??????? ??# #???? | | # # g#???????"" ?# #???? | | +% # #?????w?T" #? #???? | | # # #??????? ?? #???? | | # # #????????" ?? #???? | | # ###########???????? #? #???? | | # # #????g?????? #???? | | ## # T != #??????????? ????? | | ?# # ! #???g??????? ????? | | ?# # """ #????????????????? | | ?# # """ #????????????????? | | ?# # """ +????????????????? | | ?# # #????????????????? | | ?# # [ #????? ??????????? | +----------------------------------------------------+ Best States ------------- Heat Dissipation 31 Energy Generation 14 Energy Capacity 265 Matter Stores 300 Matter Capacity 300 Sight Range 16 Terrain Scan Density 10 Evasion (%) 54 Item Schematics ----------------- None Robot Schematics ------------------ None Fabricated ------------ Nothing Alien Tech Used ----------------- None Achievements -------------- None Challenges ------------ None Game ------ Seed MassSmallKinecellerator Manual? 0 Play Time 00:57:07 Cumulative 32.9 hours Start 2021.08.04 @ 21:44:54 End 2021.08.04 @ 22:46:03 Sessions 1 Manual Loads 0 Difficulty Rogue Special Mode None Game No. 20 Rogue 20 Adventurer 0 Explorer 0 Win Type - Total 0 Types 0/0/0/0/0/0/0/0/0 Lore% 31 Gallery% 34 Achievement% 28 Wizard Run 0 Options --------- ASCII 0 Keyboard 1 Movement Vi Keybinds 0 Fullscreen 1 Font 20/SmallcapsGlow Map View 50x50 Tactical HUD 1 Map Filters NONE Filters NONE Steam 1 RUN: 7c50a4e5-9c69-4635-b990-e47535b83f72